bitfinex/quotes_SOLUSD_20211001
["timestamp","ask_amount","ask_price","bid_price","bid_amount"]
[1633074192483,22.71329428,143.32,143.23,22.73359253]
[1633074193281,22.71329428,143.32,143.22,2.93]
[1633074193480,46.92029428,143.32,143.2,77.0558]
[1633074193684,6.80726795,143.31,143.2,77.0558]
[1633074194281,6.80726795,143.31,143.2,99.2440113]
[1633074198489,6.80726795,143.31,143.21,7.00272175]
[1633074200691,6.80726795,143.31,143.21,11.04424584]
[1633074201089,6.80726795,143.31,143.21,7.00272175]
[1633074201292,6.80726795,143.31,143.2,103.28555624]
[1633074201492,6.80726795,143.31,143.21,7.00237758]
[1633074204093,2.41675114,143.3,143.2,2.93]
[1633074204692,6.80726795,143.29,143.2,2.93]
[1633074204893,11.59915592,143.28,143.2,2.93]
[1633074205094,29.54315592,143.28,143.2,2.93]
[1633074205896,29.54315592,143.28,143.19,24.72766023]
[1633074206694,11.59915592,143.28,143.19,24.72766023]
[1633074207898,11.59915592,143.28,143.2,2.0210864]
[1633074209296,11.59915592,143.28,143.19,26.74882832]
[1633074209499,30.92015592,143.28,143.19,26.74882832]
[1633074210701,6.80726795,143.29,143.19,26.74882832]
[1633074210897,6.80726795,143.29,143.2,2.02094183]
[1633074211097,2.95088,143.3,143.22,2.02077959]
[1633074211098,0.02088,143.3,143.22,2.02077959]
[1633074211298,0.02088,143.31,143.22,2.02077959]
[1633074211704,21.5191305,143.31,143.22,30.14323468]
[1633074211898,0.02088,143.3,143.22,30.14323468]
[1633074212300,20.5191305,143.31,143.23,46.0]
[1633074214305,20.5191305,143.31,143.21,2.02107504]
[1633074214704,38.1161305,143.31,143.21,2.02107504]
[1633074214905,38.1161305,143.31,143.22,2.02110987]
[1633074215104,20.5191305,143.31,143.22,2.02110987]
[1633074215304,20.5191305,143.31,143.23,21.79433025]
[1633074215708,20.5191305,143.31,143.23,23.81547317]
[1633074216107,20.5191305,143.31,143.23,21.79433025]
[1633074216908,20.5191305,143.31,143.24,557.5662378]
[1633074217308,27.32639845,143.31,143.24,557.5662378]
[1633074217908,27.32639845,143.31,143.24,582.01276754]
[1633074218509,6.80726795,143.31,143.24,582.01276754]
[1633074219108,20.3909,143.32,143.24,582.01276754]
[1633074220911,27.19816795,143.32,143.24,582.01276754]
[1633074222711,39.05308011,143.32,143.24,582.01276754]
[1633074223112,39.05308011,143.32,143.21,2.02143205]
[1633074223311,61.58208011,143.32,143.21,2.02143205]
[1633074224015,61.58208011,143.32,143.22,2.02134357]
[1633074224212,61.58208011,143.32,143.22,28.99379193]
[1633074224414,39.05308011,143.32,143.22,31.01512523]
[1633074224614,39.05308011,143.32,143.22,28.99379193]
[1633074226121,68.29203649,143.32,143.22,28.99379193]
[1633074227115,68.29203649,143.32,143.22,31.01510552]
[1633074227315,56.43712433,143.32,143.22,31.01510552]
[1633074230018,60.981983,143.32,143.22,31.01510552]
[1633074231322,56.43712433,143.32,143.22,31.01510552]
[1633074232530,27.19816795,143.32,143.22,31.01510552]
[1633074232723,20.3909,143.32,143.23,2.01662359]
[1633074232923,20.3909,143.32,143.24,2.01023253]
[1633074233323,20.3909,143.32,143.23,1.99354987]
[1633074233724,20.3909,143.32,143.24,1.99312385]
[1633074233925,20.3909,143.32,143.25,29.42187355]
[1633074235424,2.93,143.34,143.32,20.3909]
[1633074235624,4.95127987,143.36,143.32,20.3909]
[1633074235824,2.02091087,143.38,143.32,20.3909]
[1633074236024,4.95074471,143.39,143.32,20.3909]
[1633074236225,27.06345998,143.39,143.32,20.3909]
[1633074236825,25.04271527,143.39,143.32,20.3909]
[1633074238225,2.93,143.39,143.32,20.3909]
[1633074239826,8.32787687,143.39,143.32,20.3909]
[1633074240026,2.93,143.39,143.32,20.3909]
[1633074240927,20.3802,143.41,143.32,20.3909]
[1633074242928,32.21795284,143.41,143.32,20.3909]
[1633074245232,61.44152589,143.41,143.32,20.3909]
[1633074246227,49.60377305,143.41,143.32,20.3909]
[1633074247130,75.9206155,143.41,143.32,20.3909]
[1633074249031,46.69704245,143.41,143.32,20.3909]
[1633074252533,20.3802,143.41,143.32,20.3909]
[1633074253539,29.47768044,143.4,143.32,20.3909]
[1633074253740,32.40768044,143.4,143.32,20.3909]
[1633074255743,52.38768044,143.4,143.32,20.3909]
[1633074257160,58.02311005,143.4,143.32,20.3909]
[1633074257358,88.69112754,143.4,143.32,20.3909]
[1633074257558,104.8809017,143.4,143.32,20.3909]
[1633074257960,116.36729271,143.4,143.32,20.3909]
[1633074261062,110.7318631,143.4,143.32,20.3909]
[1633074261463,17.4548,143.37,143.27,26.11956724]
[1633074261662,27.17654977,143.36,143.27,26.11956724]
[1633074262065,27.17654977,143.36,143.26,2.01091248]
[1633074262465,27.17654977,143.36,143.25,4.94064144]
[1633074262867,27.17654977,143.36,143.26,2.01501188]
[1633074263066,27.17654977,143.36,143.26,26.622141]
[1633074264068,27.17654977,143.36,143.26,24.60712912]
[1633074265067,2.93,143.36,143.26,24.60712912]
[1633074265268,2.02058438,143.38,143.26,24.60712912]
[1633074265269,2.93,143.38,143.28,1.99504956]
[1633074266070,24.66312385,143.37,143.29,27.14302111]
[1633074266768,2.93,143.38,143.29,27.14302111]
[1633074266969,19.84701653,143.4,143.29,30.07302111]
[1633074267168,19.84701653,143.4,143.3,1.97672906]
[1633074267368,19.84701653,143.4,143.29,32.05404469]
[1633074267768,21.29484401,143.39,143.29,32.05404469]
[1633074268574,21.29484401,143.39,143.29,30.07302111]
[1633074268773,21.29484401,143.39,143.29,32.06781868]
[1633074271170,21.29484401,143.39,143.29,30.07302111]
[1633074271571,19.84701653,143.4,143.29,30.07302111]
[1633074271773,2.93,143.43,143.31,1.96885861]
[1633074271971,10.75914864,143.44,143.32,1.96165317]
[1633074272171,4.94983157,143.45,143.33,2.93]
[1633074272573,33.66803771,143.45,143.34,25.62148787]
[1633074272973,31.64820614,143.45,143.34,25.62148787]
[1633074273374,33.66789962,143.45,143.34,25.62148787]
[1633074274376,2.01974177,143.44,143.34,25.62148787]
[1633074274875,39.66420728,143.45,143.34,25.62148787]
[1633074275077,34.02877767,143.45,143.34,25.62148787]
[1633074275280,32.0091286,143.45,143.34,25.62148787]
[1633074276078,54.55504294,143.45,143.34,25.62148787]
[1633074277278,62.20983891,143.45,143.34,25.62148787]
[1633074277480,66.93434571,143.45,143.34,25.62148787]
[1633074277883,17.4471,143.44,143.34,25.62148787]
[1633074278079,34.9831,143.44,143.33,2.93]
[1633074278280,5.63542961,143.43,143.33,2.93]
[1633074278479,8.56542961,143.43,143.31,2.93]
[1633074278884,15.59693872,143.43,143.31,2.93]
[1633074279081,21.62093358,143.42,143.31,2.93]
[1633074280484,21.62093358,143.42,143.32,558.99855288]
[1633074280683,21.62093358,143.42,143.33,28.96170398]
[1633074281783,12.95378642,143.43,143.33,28.96170398]
[1633074281982,2.93,143.45,143.33,31.89170398]
[1633074282183,116.5,143.47,143.33,31.89170398]
[1633074282383,119.43,143.47,143.33,39.46545957]
[1633074282584,5.63542961,143.46,143.33,33.83002996]
[1633074282785,5.63542961,143.46,143.33,31.89170398]
[1633074282786,22.75834565,143.45,143.33,31.89170398]
[1633074283187,5.63542961,143.44,143.33,31.89170398]
[1633074283585,25.68834565,143.45,143.33,31.89170398]
[1633074283783,25.68834565,143.45,143.33,39.46829699]
[1633074283984,11.83440357,143.46,143.33,39.46829699]
[1633074284384,11.83440357,143.46,143.33,33.83011012]
[1633074284584,2.56691983,143.43,143.33,4.86840614]
[1633074284783,22.18291983,143.43,143.33,2.93]
[1633074284984,5.63542961,143.42,143.32,558.99855288]
[1633074285382,5.63542961,143.42,143.32,637.77975288]
[1633074285588,27.72199109,143.41,143.32,587.88503471]
[1633074287185,27.72199109,143.41,143.32,28.88648183]
[1633074288188,16.29021848,143.42,143.32,28.88648183]
[1633074288386,35.16086345,143.43,143.33,2.93]
[1633074289187,25.626826,143.42,143.33,2.93]
[1633074289586,47.473826,143.42,143.33,2.93]
[1633074289789,21.847,143.42,143.33,2.93]
[1633074290790,57.13562283,143.43,143.33,2.93]
[1633074294189,62.77105244,143.43,143.33,2.93]
[1633074294390,57.13562283,143.43,143.32,521.71929389]
[1633074294589,5.63542961,143.42,143.32,521.71929389]
[1633074294990,60.06562283,143.43,143.32,521.71929389]
[1633074295592,38.09086345,143.43,143.32,521.71929389]
[1633074295793,20.64296345,143.43,143.32,523.66060835]
[1633074296191,2.93,143.45,143.33,2.93]
[1633074296592,27.58865971,143.44,143.33,2.93]
[1633074296797,42.51765971,143.44,143.33,2.93]
[1633074297593,45.44765971,143.44,143.33,4.88319923]
[1633074297996,45.44765971,143.44,143.33,2.93]
[1633074298199,53.10299539,143.44,143.33,2.93]
[1633074298794,38.17399539,143.44,143.33,2.93]
[1633074298994,30.51865971,143.44,143.33,4.86713733]
[1633074301695,30.51865971,143.44,143.33,2.93]
[1633074301895,30.51865971,143.44,143.33,4.89797172]
[1633074302095,30.51865971,143.44,143.33,2.93]
[1633074303096,30.51865971,143.44,143.33,4.89417817]
[1633074303295,2.93,143.44,143.33,4.89417817]
[1633074303700,2.01969578,143.46,143.33,10.52960778]
[1633074303903,4.94952177,143.47,143.34,1.95709734]
[1633074304099,2.04026294,143.48,143.35,4.88102222]
[1633074304301,24.50343813,143.47,143.37,1.93237289]
[1633074304503,24.50343813,143.47,143.38,2.93]
[1633074304701,24.50343813,143.47,143.39,23.51363706]
[1633074304901,24.50343813,143.47,143.39,26.44363706]
[1633074305104,24.50343813,143.47,143.37,2.93]
[1633074305904,60.59021857,143.47,143.37,2.93]
[1633074306104,11.21338203,143.46,143.35,2.93]
[1633074306308,29.90303753,143.46,143.35,2.93]
[1633074306507,35.53846714,143.46,143.35,2.93]
[1633074306904,37.55782321,143.46,143.35,2.93]
[1633074307104,39.44077711,143.46,143.35,2.93]
[1633074307304,54.98189777,143.46,143.35,2.93]
[1633074307505,2.42214765,143.42,143.33,2.93]
[1633074307705,26.30414765,143.42,143.32,492.83281206]
[1633074307905,36.10253116,143.42,143.31,79.0141]
[1633074308109,28.0449539,143.42,143.31,73.4941]
[1633074308308,21.94910562,143.41,143.31,101.2580722]
[1633074308907,21.94910562,143.41,143.31,73.4941]
[1633074309110,39.39980562,143.41,143.31,73.4941]
[1633074309312,45.66384315,143.41,143.29,1.96220398]
[1633074309510,8.56542961,143.4,143.29,2.93]
[1633074309909,2.93,143.4,143.29,2.93]
[1633074310108,16.37018625,143.4,143.29,2.93]
[1633074310308,33.1895417,143.4,143.29,2.93]
[1633074310711,27.55411209,143.4,143.29,2.93]
[1633074310909,18.36007456,143.4,143.29,2.93]
[1633074311108,2.93,143.42,143.31,1.93695173]
[1633074311310,2.93,143.44,143.32,2.93]
[1633074311711,22.56034135,143.43,143.33,28.9867341]
[1633074311909,22.56034135,143.43,143.33,2.93]
[1633074312107,41.77434135,143.43,143.33,2.93]
[1633074312310,3.35719055,143.42,143.31,2.93]
[1633074312908,3.35719055,143.42,143.32,25.68657636]
[1633074313310,8.99262016,143.42,143.31,2.93]
[1633074313509,27.16762016,143.42,143.31,2.93]
[1633074313709,23.81042961,143.42,143.31,2.93]
[1633074313911,2.93,143.41,143.29,78.27708178]
[1633074314112,6.27340697,143.41,143.29,78.27708178]
[1633074314314,29.47280185,143.4,143.32,429.81968644]
[1633074314916,3.34340697,143.39,143.32,429.81968644]
[1633074315112,23.45140697,143.39,143.32,429.81968644]
[1633074315512,26.38140697,143.39,143.32,429.81968644]
[1633074315717,60.37604852,143.39,143.32,429.81968644]
[1633074315914,23.038,143.39,143.27,1.97115427]
[1633074316314,29.47280185,143.4,143.27,4.90115427]
[1633074316514,29.47280185,143.4,143.29,1.95475871]
[1633074316713,29.47280185,143.4,143.3,31.68137403]
[1633074316917,29.47280185,143.4,143.29,1.95442195]
[1633074316918,2.93,143.39,143.29,1.95442195]
[1633074317114,8.56542961,143.39,143.28,1.95867989]
[1633074317316,5.63542961,143.38,143.28,1.95867989]
[1633074317715,2.93,143.37,143.28,1.95867989]
[1633074317915,23.99871963,143.36,143.28,1.95867989]
[1633074318115,23.99871963,143.36,143.27,1.97375143]
[1633074318816,23.99871963,143.36,143.26,4.91718617]
[1633074319418,2.93,143.35,143.24,2.00096758]
[1633074320216,2.93,143.35,143.25,1.99508586]
[1633074320415,2.93,143.35,143.23,32.98790698]
[1633074320416,2.93,143.35,143.26,29.15922833]
[1633074321017,2.93,143.35,143.27,1.98247487]
[1633074321220,2.93,143.35,143.28,1.97775505]
[1633074321418,2.93,143.35,143.27,1.97990851]
[1633074321618,2.93,143.35,143.26,29.15489399]
[1633074321619,24.737,143.35,143.26,29.15489399]
[1633074321820,24.737,143.35,143.26,27.16697484]
[1633074322221,24.737,143.35,143.26,29.15724974]
[1633074323021,24.737,143.35,143.26,1.9902749]
[1633074323221,24.737,143.35,143.25,4.92164575]
[1633074323823,24.737,143.35,143.26,1.99002027]
[1633074324166,24.737,143.35,143.2,6.90957619]
[1633074324167,19.3414524,143.22,143.2,6.90957619]
[1633074324326,19.3414524,143.22,143.2,2.00940459]
[1633074324327,45.02211483,143.22,143.2,2.00940459]
[1633074324525,45.02211483,143.22,143.19,5.52]
[1633074324928,22.81570221,143.21,143.19,5.52]
[1633074325323,42.4684524,143.22,143.19,5.52]
[1633074325522,19.3414524,143.22,143.19,5.52]
[1633074325722,19.3414524,143.22,143.15,27.55294858]
[1633074325923,19.3414524,143.22,143.14,2.93]
[1633074327026,37.5714524,143.22,143.14,2.93]
[1633074327224,24.10509438,143.21,143.14,2.93]
[1633074327625,24.10509438,143.21,143.1,2.93]
[1633074328425,24.10509438,143.21,143.11,29.38954612]
[1633074330028,24.10509438,143.21,143.1,2.93]
[1633074330228,40.03009438,143.21,143.1,2.93]
[1633074332033,40.03009438,143.21,143.11,26.79044556]
[1633074332237,24.10509438,143.21,143.11,26.79044556]
[1633074333635,2.93,143.2,143.08,80.6777]
[1633074334634,2.93,143.2,143.09,24.71367078]
[1633074336636,2.93,143.2,143.08,80.6777]
[1633074337036,2.93,143.2,143.08,77.7477]
[1633074339445,2.93,143.2,143.09,432.16425026]
[1633074339841,2.97360782,143.2,143.09,432.16425026]
[1633074341443,2.97360782,143.2,143.08,77.7477]
[1633074341444,17.4781,143.19,143.08,77.7477]
[1633074341642,2.49638213,143.17,143.08,77.7477]
[1633074341842,2.49638213,143.17,143.03,30.0]
[1633074341843,2.50636809,143.12,143.03,30.0]
[1633074342044,2.50636809,143.12,143.0,10.02088]
[1633074342045,2.42185947,143.09,143.0,10.02088]
[1633074342242,10.54225614,143.03,143.0,10.02088]
[1633074342450,34.05425614,143.03,143.0,10.0]
[1633074342646,2.48908595,143.01,142.94,0.02088]
[1633074342843,2.48908595,143.01,142.89,2.93]
[1633074342844,5.41908595,143.01,142.9,0.02088]
[1633074343068,5.41908595,143.01,142.89,2.93]
[1633074343244,2.93,143.01,142.97,30.0]
[1633074343444,37.0,143.0,142.87,0.02088]
[1633074343644,2.93,142.99,142.87,0.02088]
[1633074343849,37.0,142.97,142.85,74.93338]
[1633074344045,2.93,142.96,142.91,5.52]
[1633074345253,37.0,142.95,142.83,56.20788]
[1633074345454,37.0,142.95,142.84,2.93]
[1633074345647,2.93,142.96,142.84,2.93]
[1633074346249,25.00981187,142.98,142.85,28.59642642]
[1633074346446,27.93981187,142.98,142.86,2.93]
[1633074346849,27.93981187,142.98,142.85,28.59642642]
[1633074350055,27.93981187,142.98,142.83,2.93]
[1633074350255,5.63542961,142.97,142.83,2.93]
[1633074350464,2.93,142.96,142.83,2.93]
[1633074351060,21.80460997,142.95,142.83,25.44544851]
[1633074351256,2.93,142.94,142.83,25.44544851]
[1633074351458,2.93,142.94,142.83,2.93]
[1633074352456,2.93,142.94,142.84,26.5494181]
[1633074352655,2.93,142.94,142.82,3.03808364]
[1633074353061,2.95088,142.94,142.82,0.10808364]
[1633074354258,2.93,142.94,142.82,0.10808364]
[1633074354457,2.93,142.94,142.82,3.03808364]
[1633074354856,2.93,142.94,142.86,532.59655619]
[1633074355080,2.93,142.94,142.86,562.44334536]
[1633074356160,2.93,142.94,142.86,532.59655619]
[1633074356361,2.93,142.94,142.82,3.03808364]
[1633074356961,2.95088,142.94,142.82,3.03808364]
[1633074357160,2.95088,142.94,142.83,23.77152798]
[1633074358963,2.93,142.94,142.83,23.77152798]
[1633074359162,2.93,142.94,142.83,19.77152798]
[1633074360966,2.58070082,142.91,142.82,3.03808364]
[1633074361187,2.93,142.9,142.82,0.10808364]
[1633074361787,5.63542961,142.89,142.82,0.10808364]
[1633074361987,27.87149104,142.91,142.82,0.10808364]
[1633074362590,2.93,142.9,142.82,0.10808364]
[1633074363088,4.30319983,142.89,142.82,0.10808364]
[1633074363290,2.42698379,142.85,142.73,4.04220351]
[1633074363487,2.42698379,142.85,142.7,6.06302832]
[1633074363488,2.5215521,142.81,142.75,30.0]
[1633074363688,2.93,142.8,142.75,16.51474508]
[1633074363888,2.93,142.8,142.59,718.90313431]
[1633074363889,36.0,142.78,142.65,2.93]
[1633074364093,2.93,142.77,142.65,2.93]
[1633074364494,2.93,142.77,142.66,28.82994641]
[1633074365700,2.93,142.77,142.67,6.44714701]
[1633074365901,2.93,142.77,142.66,28.82994641]
[1633074369605,2.93,142.77,142.67,447.66603335]
[1633074369802,2.93,142.77,142.66,28.82994641]
[1633074370004,0.02088,142.78,142.67,13.41991269]
[1633074370203,2.93,142.79,142.67,13.41991269]
[1633074370404,2.93,142.79,142.68,10.48932089]
[1633074370605,2.93,142.79,142.68,6.44615157]
[1633074370804,2.93,142.79,142.67,4.04344526]
[1633074371008,0.02088,142.78,142.66,6.44881073]
[1633074371205,2.93,142.77,142.66,6.44881073]
[1633074371405,18.97088,142.77,142.67,4.0451596]
[1633074371605,18.97088,142.77,142.68,23.73844547]
[1633074372605,2.95088,142.77,142.68,23.73844547]
[1633074372808,2.93,142.77,142.68,23.73844547]
[1633074373006,2.93,142.77,142.66,4.04469782]
[1633074373206,8.56542961,142.77,142.64,4.04540613]
[1633074373406,8.58630961,142.77,142.63,10.49417004]
[1633074373612,2.95088,142.77,142.65,4.0448374]
[1633074373806,2.93,142.77,142.65,6.9748374]
[1633074374005,2.93,142.77,142.66,24.87940308]
[1633074374206,2.93,142.77,142.66,31.32733834]
[1633074374405,2.93,142.77,142.66,24.87940308]
[1633074374809,0.02088,142.76,142.66,24.87940308]
[1633074375005,2.93,142.75,142.66,24.87940308]
[1633074375211,2.95088,142.75,142.63,2.93]
[1633074376008,2.93,142.75,142.64,6.44742372]
[1633074376209,2.93,142.75,142.65,25.51212325]
[1633074378407,2.93,142.75,142.65,28.44212325]
[1633074380209,2.93,142.75,142.65,25.51212325]
[1633074382215,2.93,142.75,142.63,2.93]
[1633074382418,20.731,142.75,142.63,2.93]
[1633074382613,20.731,142.75,142.61,2.93]
[1633074383014,2.95088,142.77,142.63,4.04598076]
[1633074383214,2.95088,142.77,142.64,27.18432122]
[1633074383215,2.93,142.77,142.64,27.18432122]
[1633074383414,2.93,142.77,142.65,2.93]
[1633074383615,2.93,142.77,142.64,24.25432122]
[1633074383813,21.671,142.77,142.64,24.25432122]
[1633074384017,21.671,142.77,142.65,2.93]
[1633074385817,2.93,142.77,142.65,2.93]
[1633074386220,2.93,142.77,142.66,10.50035831]
[1633074386416,2.93,142.77,142.67,23.53792873]
[1633074388517,2.93,142.77,142.68,6.45596815]
[1633074388715,2.93,142.77,142.68,10.50776673]
[1633074388918,2.93,142.77,142.68,6.45596815]
[1633074389520,2.93,142.77,142.69,4.05440251]
[1633074389717,2.93,142.77,142.68,10.5105264]
[1633074389918,26.082,142.77,142.68,10.5105264]
[1633074390118,26.10288,142.77,142.68,10.5105264]
[1633074390918,26.10288,142.77,142.71,462.12777571]
[1633074391119,17.5304,142.76,142.71,462.12777571]
[1633074391319,2.93,142.75,142.71,462.12777571]
[1633074391519,2.93,142.75,142.71,426.82777571]
[1633074392722,2.93,142.75,142.64,2.93]
[1633074393322,2.93,142.75,142.61,2.93]
[1633074393523,2.93,142.75,142.62,29.18925569]
[1633074394521,10.98954759,142.75,142.62,29.18925569]
[1633074395122,0.02088,142.74,142.62,29.18925569]
[1633074395323,2.93,142.73,142.6,2.93]
[1633074395524,26.05342961,142.73,142.6,2.93]
[1633074396123,23.17092961,142.72,142.6,2.93]
[1633074396324,2.93,142.71,142.6,2.93]
[1633074397325,2.93,142.73,142.6,2.93]
[1633074398327,17.5355,142.72,142.6,2.93]
[1633074398529,2.93,142.71,142.6,2.93]
[1633074398926,2.93,142.71,142.58,2.93]
[1633074399928,2.93,142.71,142.58,28.66911675]
[1633074400329,2.44751899,142.67,142.53,62.95088]
[1633074400528,2.93,142.66,142.53,60.02088]
[1633074400930,8.89431094,142.66,142.53,60.02088]
[1633074401128,33.7136288,142.66,142.53,60.0]
[1633074401328,2.93,142.66,142.53,60.0]
[1633074401528,8.56542961,142.66,142.53,60.0]
[1633074401728,39.34905841,142.66,142.5,0.02088]
[1633074401930,5.96431094,142.65,142.47,2.95088]
[1633074402132,2.93,142.64,142.47,2.95088]
[1633074402328,2.93,142.64,142.48,28.72959507]
[1633074402730,8.56542961,142.64,142.49,2.93]
[1633074402928,2.93,142.64,142.49,2.93]
[1633074403127,2.93,142.64,142.49,76.8576]
[1633074403728,2.93,142.64,142.51,22.0332546]
[1633074403929,17.5482,142.62,142.51,22.0332546]
[1633074404128,2.93,142.61,142.51,22.0332546]
[1633074409533,2.93,142.61,142.51,21.5332546]
[1633074414942,2.93,142.61,142.51,97.1846546]
[1633074416344,2.93,142.61,142.51,21.5332546]
[1633074416546,22.344,142.61,142.51,21.5332546]
[1633074417944,2.93,142.61,142.51,21.5332546]
[1633074418550,17.5465,142.63,142.52,2.93]
[1633074418947,17.5465,142.63,142.52,2.03]
[1633074419546,2.93,142.62,142.51,95.5445546]
[1633074419947,7.4498665,142.62,142.51,95.5445546]
[1633074420547,7.4498665,142.62,142.51,21.5332546]
[1633074421550,2.93,142.62,142.51,21.5332546]
[1633074425156,2.93,142.62,142.5,441.51279258]
[1633074425364,2.5015122,142.59,142.5,441.51279258]
[1633074425557,2.93,142.58,142.5,441.51279258]
[1633074425956,2.93,142.58,142.45,744.07637435]
[1633074426159,2.93,142.58,142.46,23.28832269]
[1633074427160,8.56542961,142.58,142.46,23.28832269]
[1633074427558,2.93,142.58,142.46,23.28832269]
[1633074430864,19.96,142.51,142.46,23.28832269]
[1633074433074,19.96,142.51,142.48,373.24115814]
[1633074433269,19.96,142.51,142.49,29.1378753]
[1633074434269,19.96,142.51,142.48,373.24115814]
[1633074435272,19.96,142.51,142.48,395.21059133]
[1633074437579,2.93,142.57,142.51,9.63]
[1633074437779,0.02088,142.58,142.51,27.398]
[1633074437981,0.02088,142.65,142.52,23.63869035]
[1633074438180,2.93,142.63,142.52,102.81829035]
[1633074441201,2.93,142.63,142.52,23.63869035]
[1633074442006,2.95088,142.65,142.53,2.93]
[1633074442205,2.93,142.65,142.53,2.93]
[1633074444705,2.93,142.65,142.53,8.56542961]
[1633074445702,2.95088,142.65,142.53,8.56542961]
[1633074446308,2.95088,142.65,142.57,357.96226612]
[1633074446507,0.02088,142.65,142.58,28.45288362]
[1633074446706,0.02088,142.66,142.58,28.45288362]
[1633074446906,2.93,142.67,142.58,28.45288362]
[1633074447505,35.11786211,142.67,142.58,28.45288362]
[1633074448307,35.11786211,142.67,142.57,357.96226612]
[1633074448507,0.02088,142.66,142.57,357.96226612]
[1633074448710,2.93,142.65,142.57,357.96226612]
[1633074448908,2.95088,142.65,142.57,357.96226612]
[1633074449710,5.63542961,142.64,142.57,357.96226612]
[1633074449913,2.93,142.63,142.57,357.96226612]
[1633074450111,26.01,142.63,142.57,357.96226612]
[1633074450313,31.64542961,142.63,142.57,357.96226612]
[1633074450714,26.01,142.63,142.57,29.74817083]
[1633074452113,2.93,142.63,142.57,29.74817083]
[1633074454715,2.93,142.68,142.57,32.67817083]
[1633074454916,2.93,142.7,142.57,57.86460044]
[1633074455320,0.02088,142.72,142.57,57.86460044]
[1633074455520,0.02088,142.72,142.57,32.67817083]
[1633074455717,2.93,142.71,142.57,32.67817083]
[1633074458121,37.25997322,142.71,142.57,32.67817083]
[1633074458321,42.89540283,142.71,142.57,32.67817083]
[1633074458520,49.45502326,142.71,142.57,32.67817083]
[1633074458720,17.5384,142.7,142.57,32.67817083]
[1633074458921,2.93,142.69,142.57,32.67817083]
[1633074461629,0.02088,142.68,142.52,4.9595685]
[1633074461829,2.93,142.67,142.52,2.93]
[1633074462027,45.22714909,142.67,142.52,2.93]
[1633074462225,40.60890283,142.66,142.52,2.93]
[1633074462426,2.93,142.65,142.52,2.93]
[1633074462626,8.56542961,142.65,142.52,27.72591859]
[1633074462827,43.53890283,142.65,142.52,27.72591859]
[1633074463834,37.90347322,142.65,142.52,27.72591859]
[1633074464028,37.90347322,142.65,142.52,29.755986]
[1633074464828,37.90347322,142.65,142.52,27.72591859]
[1633074465730,37.90347322,142.65,142.52,29.75614088]
[1633074466534,2.93,142.65,142.52,29.75614088]
[1633074467531,2.93,142.65,142.52,35.39157049]
[1633074467732,2.93,142.65,142.53,2.03023795]
[1633074468532,2.93,142.65,142.53,76.33233795]
[1633074470834,2.93,142.65,142.54,2.93]
[1633074471037,2.93,142.65,142.55,28.47888942]
[1633074471235,2.93,142.65,142.55,31.40888942]
[1633074472839,2.93,142.65,142.57,419.28510302]
[1633074473037,2.93,142.65,142.58,21.64426272]
[1633074473840,2.93,142.65,142.57,419.28510302]
[1633074474941,2.93,142.65,142.58,30.23180108]
[1633074476742,2.93,142.65,142.57,419.28510302]
[1633074476946,71.44740978,142.65,142.57,419.28510302]
[1633074477142,6.66309473,142.64,142.51,9.63]
[1633074477343,2.95088,142.63,142.51,9.63]
[1633074477542,8.58630961,142.63,142.51,9.63]
[1633074477743,5.63542961,142.62,142.51,9.63]
[1633074477943,2.93,142.61,142.51,9.63]
[1633074480546,8.56542961,142.61,142.51,9.63]
[1633074481145,2.93,142.61,142.51,9.63]
[1633074481344,2.93,142.61,142.51,84.5382]
[1633074481544,3.50655727,142.59,142.51,9.63]
[1633074481947,2.93,142.58,142.51,9.63]
[1633074483146,8.56542961,142.58,142.51,9.63]
[1633074484148,2.93,142.58,142.51,9.63]
[1633074488151,3.50655727,142.59,142.51,9.63]
[1633074488351,3.50655727,142.59,142.51,25.955]
[1633074490155,3.50655727,142.59,142.51,28.885]
[1633074491354,3.50655727,142.59,142.51,104.5952]